bitfinex-derivatives/quotes_ETHF0:USTF0_20250417
["timestamp","ask_amount","ask_price","bid_price","bid_amount"]
[1744857669156,4.164,1588.1,1588.0,1.25954]
[1744857670259,4.164,1588.1,1587.9,2.92936]
[1744857670454,1.7117,1588.0,1587.9,2.92936]
[1744857672853,1.7117,1588.0,1587.8,1.25965]
[1744857673557,2.97125,1588.0,1587.8,1.25965]
[1744857673950,2.97125,1588.0,1587.7,1.6034515]
[1744857673951,1.7117,1588.0,1587.9,1.25962]
[1744857674156,1.7117,1588.0,1587.8,1.25965]
[1744857675760,2.97124,1588.0,1587.8,1.25965]
[1744857675960,1.7117,1588.0,1587.9,1.25962]
[1744857676462,1.7117,1588.0,1587.8,1.25965]
[1744857676662,1.7117,1588.0,1587.9,1.25962]
[1744857676863,4.164,1588.1,1588.0,1.25954]
[1744857677164,1.6565,1588.3,1588.2,1.25938]
[1744857677662,1.25941,1588.2,1588.0,2.96752]
[1744857677864,2.91599,1588.1,1587.9,1.25958]
[1744857678051,1.6565,1588.0,1587.9,1.25958]
[1744857679465,4.166,1588.1,1588.0,1.25954]
[1744857680264,5.9128,1588.1,1587.9,1.5996]
[1744857680460,4.166,1588.1,1588.0,1.25954]
[1744857681165,0.8467,1588.4,1588.0,3.14886]
[1744857681360,5.0127,1588.4,1588.3,1.2593]
[1744857682060,4.166,1588.4,1588.3,1.2593]
[1744857682761,4.166,1588.4,1588.3,2.9786]
[1744857683167,100.145,1588.6,1588.5,1.25915]
[1744857683666,4.1754515,1588.7,1588.6,1.25907]
[1744857683866,5.4344615,1588.7,1588.5,1.2591]
[1744857684260,4.1754515,1588.7,1588.6,1.25907]
[1744857684467,5.4344415,1588.7,1588.5,1.25908]
[1744857684659,4.1754515,1588.7,1588.5,1.25908]
[1744857684862,4.1754515,1588.7,1588.6,1.25907]
[1744857685363,0.0094515,1588.7,1588.6,1.25907]
[1744857685969,0.0094515,1588.7,1588.6,2.89937]
[1744857688167,1.2684415,1588.7,1588.6,2.89937]
[1744857688370,1.2684415,1588.7,1588.6,1.6403]
[1744857688571,1.2684415,1588.7,1588.6,2.89937]
[1744857688871,0.0094515,1588.7,1588.6,1.25907]
[1744857689973,0.0094515,1588.7,1588.6,2.93997]
[1744857692060,1.6822515,1588.7,1588.6,2.93997]
[1744857692258,0.0094515,1588.7,1588.6,2.93997]
[1744857692664,0.0094515,1588.7,1588.6,3.75027]
[1744857695972,2.9806415,1588.7,1588.5,4.4669]
[1744857696273,1.7122,1588.6,1588.5,4.4669]
[1744857697677,1.7122,1588.6,1588.5,6.1109]
[1744857699375,0.0094515,1588.7,1588.6,1.25907]
[1744857699576,0.0094515,1588.7,1588.6,2.90307]
[1744857700770,1.2684415,1588.7,1588.6,1.25907]
[1744857700978,2.8702415,1588.7,1588.6,1.25907]
[1744857701977,2.8702415,1588.7,1588.5,6.21709]
[1744857702177,1.6018,1588.6,1588.5,6.21709]
[1744857702881,0.0094515,1588.7,1588.6,1.25907]
[1744857703081,0.0094515,1588.7,1588.6,3.00927]
[1744857704380,0.0094515,1588.7,1588.6,3.88457]
[1744857704776,1.6509515,1588.7,1588.6,3.88457]
[1744857705487,2.9099415,1588.7,1588.6,3.88457]
[1744857706387,1.6509515,1588.7,1588.6,3.88457]
[1744857707682,2.9099415,1588.7,1588.6,3.88457]
[1744857707877,1.6509515,1588.7,1588.6,3.88457]
[1744857708277,2.9099415,1588.7,1588.6,3.88457]
[1744857708478,1.6509515,1588.7,1588.6,3.88457]
[1744857708977,2.9099415,1588.7,1588.6,3.88457]
[1744857709474,1.6509515,1588.7,1588.6,3.88457]
[1744857710585,0.0094515,1588.7,1588.6,3.88457]
[1744857713087,1.2684415,1588.7,1588.6,3.88457]
[1744857713279,1.6503515,1588.7,1588.6,3.88457]
[1744857713781,2.9093415,1588.7,1588.6,3.88457]
[1744857714687,2.9093415,1588.7,1588.6,1.25907]
[1744857715390,2.9093415,1588.7,1588.5,6.201]
[1744857715583,1.6409,1588.6,1588.5,6.201]
[1744857716191,2.4495,1588.6,1588.5,6.201]
[1744857716793,1.6409,1588.6,1588.5,6.201]
[1744857718391,1.6409,1588.6,1588.5,2.9932]
[1744857718690,0.0094515,1588.7,1588.6,1.25907]
[1744857718892,1.6191515,1588.7,1588.6,3.01817]
[1744857720795,5.8101515,1588.7,1588.6,3.01817]
[1744857722495,7.0691415,1588.7,1588.6,3.01817]
[1744857724098,7.0691415,1588.7,1588.6,1.7591]
[1744857724995,7.0691415,1588.7,1588.6,3.01817]
[1744857727298,7.0691415,1588.7,1588.6,1.7591]
[1744857727494,1.25915,1588.5,1588.4,5.75589062]
[1744857727697,1.25915,1588.5,1588.3,1.25927]
[1744857727895,3.3059,1588.4,1588.3,1.25927]
[1744857728198,1.2593,1588.3,1588.2,10.84830005]
[1744857728401,2.9465,1588.3,1588.2,10.84830005]
[1744857728600,2.9465,1588.3,1588.2,8.36640005]
[1744857729705,1.25946,1588.1,1588.0,1.592]
[1744857730810,5.0227,1588.1,1587.9,13.70787005]
[1744857731004,1.6872,1588.0,1587.9,15.29987005]
[1744857732909,5.0227,1588.1,1588.0,1.25954]
[1744857733215,5.0227,1588.1,1588.0,2.85704]
[1744857733914,6.28216,1588.1,1588.0,2.85704]
[1744857734114,7.96376,1588.1,1588.0,2.85704]
[1744857735420,6.7043,1588.1,1588.0,2.85704]
[1744857736419,7.96376,1588.1,1588.0,2.85704]
[1744857737124,6.7043,1588.1,1588.0,2.85704]
[1744857737324,4.166,1588.1,1588.0,2.85704]
[1744857737523,4.166,1588.3,1588.2,1.25933]
[1744857738725,4.166,1588.3,1588.2,2.96303]
[1744857742823,4.1754515,1588.7,1588.5,1.25915]
[1744857743020,1.25907,1588.6,1588.4,1.25922]
[1744857743226,3.69947,1588.6,1588.4,2.91302]
[1744857743416,0.8383,1588.6,1588.5,1.25915]
[1744857743727,4.1754515,1588.7,1588.6,1.25907]
[1744857744468,7.1218415,1588.7,1588.6,1.25907]
[1744857745259,5.8628515,1588.7,1588.6,1.25907]
[1744857746163,7.1218415,1588.7,1588.5,3.01699]
[1744857746353,1.6874,1588.6,1588.5,3.01699]
[1744857750566,2.94647,1588.6,1588.5,3.01699]
[1744857750757,2.94647,1588.6,1588.5,1.25909]
[1744857751062,2.94647,1588.6,1588.4,2.90646]
[1744857751264,2.4722,1588.5,1588.4,2.90646]
[1744857751967,4.9712515,1588.7,1588.6,1.25907]
[1744857752160,6.2302415,1588.7,1588.6,1.25907]
[1744857752459,6.2302415,1588.7,1588.5,2.90639]
[1744857752657,1.6487,1588.6,1588.5,2.90639]
[1744857755455,2.90777,1588.6,1588.5,2.90639]
[1744857755867,1.25915,1588.5,1588.4,2.08278]
[1744857756153,2.4885,1588.5,1588.4,2.08278]
[1744857757355,3.74765,1588.5,1588.4,2.08278]
[1744857757653,3.74765,1588.5,1588.4,1.25918]
[1744857758232,3.74765,1588.5,1588.3,6.87815]
[1744857758435,1.6712,1588.4,1588.3,6.87815]
[1744857759125,1.6712,1588.4,1588.3,3.67035]
[1744857759630,2.93042,1588.4,1588.3,2.4111]
[1744857759827,1.2593,1588.3,1588.2,11.06241062]
[1744857760027,2.9129,1588.3,1588.2,0.8394]
[1744857760228,2.9129,1588.3,1588.2,1.25938]
[1744857760431,1.6536,1588.3,1588.2,1.25938]
[1744857760929,1.6536,1588.3,1588.2,2.91828]
[1744857761259,2.9129,1588.3,1588.2,2.91828]
[1744857761458,2.9129,1588.3,1588.2,1.6589]
[1744857761661,2.9129,1588.3,1588.2,2.91828]
[1744857762070,2.9129,1588.3,1588.2,1.6589]
[1744857762263,2.9129,1588.3,1588.2,1.25938]
[1744857762665,1.6536,1588.3,1588.2,1.25938]
[1744857762857,1.6536,1588.3,1588.2,2.92408]
[1744857765046,2.9129,1588.3,1588.2,2.92408]
[1744857765541,4.9728,1588.4,1588.2,2.92408]
[1744857765736,5.42507,1588.6,1588.2,8.02089]
[1744857766043,4.166,1588.6,1588.5,1.25915]
[1744857766537,5.7686,1588.6,1588.4,2.5394]
[1744857766738,7.02772,1588.6,1588.4,3.7986]
[1744857766943,1.6026,1588.5,1588.4,3.7986]
[1744857767942,2.86175,1588.5,1588.4,2.5394]
[1744857768344,4.166,1588.6,1588.5,1.25915]
[1744857768544,5.8521,1588.6,1588.5,2.89995]
[1744857773541,4.166,1588.6,1588.5,2.89995]
[1744857778548,5.8399,1588.6,1588.5,2.89995]
[1744857782251,7.09897,1588.6,1588.5,2.89995]
[1744857782452,5.8399,1588.6,1588.5,2.89995]
[1744857787954,4.166,1588.6,1588.5,2.89995]
[1744857791348,7.5010515,1588.7,1588.6,1.25907]
[1744857792156,0.8843515,1588.7,1588.6,1.25907]
[1744857792360,0.0094515,1588.7,1588.6,4.46687]
[1744857792661,0.0094515,1588.7,1588.6,5.26577]
[1744857793161,0.0094515,1588.7,1588.6,2.05797]
[1744857793863,1.2684415,1588.7,1588.5,2.8999]
[1744857794160,5.42307,1588.6,1588.4,8.96369062]
[1744857794357,2.577,1588.5,1588.4,10.22291062]
[1744857795257,2.577,1588.5,1588.4,4.46702]
[1744857796362,4.9776,1588.6,1588.5,1.25915]
[1744857796562,4.164,1588.6,1588.5,1.25915]
[1744857796863,7.86147,1588.6,1588.4,4.46697]
[1744857797056,2.4438,1588.5,1588.4,4.46697]
[1744857799552,2.4438,1588.5,1588.4,6.14237]
[1744857802570,4.9776,1588.6,1588.5,1.25915]
[1744857802766,0.0094515,1588.7,1588.6,1.25907]
[1744857802968,0.0094515,1588.7,1588.6,3.66887]
[1744857804864,0.0094515,1588.7,1588.6,9.42476062]
[1744857808065,1.5e-06,1588.7,1588.6,14.42476062]
[1744857808271,1.5e-06,1588.7,1588.6,18.58876062]
[1744857809876,3.2078,1589.4,1589.0,3.14681]
[1744857810076,4.9,1589.4,1589.3,1.25851]
[1744857810878,11.15843,1589.4,1589.1,3.2607]
[1744857811079,3.4177,1589.3,1589.2,0.0094515]
[1744857812080,3.4177,1589.3,1589.2,1.2680415]
[1744857813472,9.67621,1589.3,1589.2,0.0094515]
[1744857815075,9.67621,1589.3,1589.2,1.2680415]
[1744857816484,4.67621,1589.3,1589.2,1.2680415]
[1744857817283,9.67621,1589.3,1589.2,0.0094515]
[1744857817881,9.7919023,1589.3,1589.2,0.0094515]
[1744857818183,1.25875,1589.0,1588.9,5.75589062]
[1744857818382,5.42075,1589.0,1588.8,1.25887]
[1744857818687,3.4006,1588.9,1588.8,1.25887]
[1744857819082,4.65943,1588.9,1588.7,2.1192815]
[1744857819586,1.6225,1588.8,1588.7,2.1192815]
[1744857820888,7.88141,1588.8,1588.7,0.0094515]
[1744857821081,1.25907,1588.6,1588.5,20.98802145]
[1744857821282,5.42107,1588.6,1588.5,20.98802145]
[1744857821582,1.25924,1588.4,1588.2,2.87843]
[1744857822086,1.6225,1588.3,1588.2,2.87843]
[1744857822287,1.6225,1588.3,1588.2,1.25933]
[1744857826187,1.6738515,1588.5,1588.4,1.25922]
[1744857826685,3.3014515,1588.5,1588.4,1.25922]
[1744857827783,4.5606215,1588.5,1588.3,1.25925]
[1744857828087,1.6276,1588.4,1588.3,1.25925]
[1744857832684,2.88682,1588.4,1588.2,1.25931]
[1744857833085,1.7134,1588.3,1588.2,1.25931]
[1744857834388,2.9330515,1588.5,1588.4,1.25922]
[1744857835697,4.6284515,1588.5,1588.3,1.25924]
[1744857835893,1.6954,1588.4,1588.3,1.25924]
[1744857837498,2.9330015,1588.5,1588.4,1.25922]
[1744857837696,4.6284015,1588.5,1588.4,1.25922]
[1744857839693,1.25922,1588.4,1588.3,1.25924]
[1744857839893,4.6284615,1588.5,1588.3,1.25924]
[1744857840397,4.6284615,1588.5,1588.4,1.25922]
[1744857841196,3.3692515,1588.5,1588.4,1.25922]
[1744857841594,2.5462515,1588.5,1588.4,1.25922]
[1744857841790,0.0094515,1588.5,1588.4,1.25922]
[1744857842189,0.0094515,1588.5,1588.4,3.85462]
[1744857847099,5.99,1589.1,1588.7,1.25899]
[1744857847100,5.8171,1588.8,1588.7,1.25899]
[1744857847298,7.07601,1588.8,1588.6,1.25901]
[1744857847501,7.07601,1588.8,1588.7,1.634]
[1744857848499,7.07601,1588.8,1588.6,1.25901]
[1744857848500,1.25899,1588.7,1588.6,1.25901]
[1744857848701,3.76809,1588.7,1588.5,2.89309]
[1744857848997,0.8274,1588.6,1588.5,2.89309]
[1744857849197,2.4825,1588.6,1588.5,2.89309]
[1744857851306,3.74157,1588.6,1588.5,2.89309]
[1744857851503,3.74157,1588.6,1588.4,7.85227062]
[1744857851801,1.7268,1588.5,1588.4,7.01507062]
[1744857851995,1.7268,1588.5,1588.4,9.50167062]
[1744857853810,1.7268,1588.5,1588.4,3.74578]
[1744857854907,1.7268,1588.5,1588.4,2.88848]
[1744857861222,4.9894,1588.6,1588.5,1.25915]
[1744857861418,6.24847,1588.6,1588.5,3.01655]
[1744857861616,7.84457,1588.6,1588.5,3.01655]
[1744857861820,6.5855,1588.6,1588.5,3.01655]
[1744857862520,4.162,1588.6,1588.5,3.01655]
[1744857862819,7.5618,1588.8,1588.7,1.25899]
[1744857863322,1.25938,1588.2,1588.0,20.98802145]
[1744857863516,5.42138,1588.2,1588.0,20.98802145]
[1744857863718,1.25946,1588.1,1588.0,20.98802145]
[1744857863921,48.66706,1588.1,1588.0,0.25359092]
[1744857864113,1.25954,1588.0,1587.9,16.63290862]
[1744857864315,2.94294,1588.0,1587.9,16.63290862]
[1744857864519,7.94294,1588.0,1587.9,16.63290862]
[1744857866417,7.94294,1588.0,1587.9,15.36566862]
[1744857866720,7.94294,1588.0,1587.9,10.81531862]
[1744857867020,7.94294,1588.0,1587.8,20.62067898]
[1744857867021,1.25962,1587.9,1587.8,20.62067898]
[1744857867223,10.38042,1587.9,1587.8,0.0094515]
[1744857867424,15.38042,1587.9,1587.8,1.5e-06]
[1744857867721,56.18042,1587.9,1587.8,1.5e-06]
[1744857870720,1.26052,1586.8,1586.5,8.96369062]
[1744857871019,1.26052,1586.8,1586.7,3.2078]
[1744857871216,1.26052,1586.8,1586.7,8.2078]
[1744857871720,1.26057,1586.7,1586.6,1.6989515]
[1744857872111,1.26057,1586.7,1586.1,3.2078]
[1744857872317,1.26097,1586.2,1586.1,3.19856145]
[1744857872718,1.26105,1586.1,1586.0,20.79113578]
[1744857873117,1.26105,1586.1,1586.0,25.79113578]
[1744857873319,1.26105,1586.1,1586.0,25.67126909]
[1744857873521,1.26105,1586.1,1586.0,26.54266909]
[1744857875043,1.26105,1586.1,1586.0,5.8714]
[1744857875232,1.26105,1586.1,1586.0,0.8714]
[1744857875424,1.26105,1586.1,1586.0,2.5537]
[1744857877631,4.18,1586.2,1585.7,3.2078]
[1744857877832,1.26121,1585.9,1585.8,1.6801]
[1744857879528,1.26119,1586.0,1585.8,2.5163]
[1744857879729,1.26119,1586.0,1585.9,1.6801]
[1744857880529,3.15287,1586.0,1585.5,0.8207]
[1744857880731,1.26137,1585.7,1585.6,1.7379]
[1744857881665,1.26137,1585.7,1585.6,6.7379]
[1744857882949,1.26137,1585.7,1585.6,2.99935]
[1744857883244,1.26137,1585.7,1585.6,1.7379]
[1744857883746,1.26137,1585.7,1585.6,2.99935]
[1744857883947,1.26137,1585.7,1585.6,1.7379]
[1744857884352,12.13886,1585.9,1585.4,4.0842]
[1744857884561,2.94925,1585.6,1585.5,1.6569]
[1744857884747,7.13125,1585.6,1585.5,1.6569]
[1744857885148,5.44345,1585.6,1585.5,1.6569]
[1744857886434,3.2078,1585.7,1585.5,1.6569]
[1744857886735,1.26113,1586.0,1585.8,1.26126]
[1744857886925,1.26113,1586.0,1585.9,1.6515]
[1744857887425,1.26139,1585.7,1585.5,1.26145]
[1744857887622,5.44433,1585.8,1585.5,1.6515]
[1744857887833,1.26137,1585.7,1585.6,1.2614]
[1744857889436,5.44434,1585.8,1585.6,1.2614]
[1744857892247,5.44434,1585.8,1585.4,4.9276]
[1744857892248,1.26147,1585.6,1585.4,6.18914]
[1744857892636,1.26147,1585.6,1585.5,1.26153]
[1744857893536,4.46905,1585.9,1585.7,1.26131]
[1744857893736,3.2078,1586.5,1585.9,3.15303]
[1744857894035,102.147,1587.2,1586.4,3.15204]
[1744857894036,104.4219,1587.2,1586.4,3.15204]
[1744857894232,7.3908,1587.4,1586.6,6.35944]
[1744857894433,3.2078,1587.4,1586.8,3.2078]
[1744857894639,3.2078,1587.3,1586.8,1.26049]
[1744857894842,5.4526515,1587.2,1586.9,0.0094515]
[1744857895139,4.1924515,1587.2,1586.9,0.0094515]
[1744857896737,3.2078,1587.1,1586.9,0.0094515]
[1744857896945,5.33071,1587.1,1586.9,0.0094515]
[1744857897243,2.12291,1587.1,1586.9,0.0094515]
[1744857897437,1.6736,1587.0,1586.9,0.0094515]
[1744857897643,6.14174,1587.0,1586.6,3.2078]
[1744857897943,4.182,1586.9,1586.6,4.46845]
[1744857898141,1.6736,1586.8,1586.7,1.26057]
[1744857899138,4.182,1587.0,1586.9,1.26041]
[1744857899453,5.9376,1587.0,1586.9,1.26041]
[1744857901442,0.0094515,1587.2,1586.8,3.15123]
[1744857901641,0.0094515,1587.2,1587.1,1.26026]
[1744857901843,3.2172515,1587.2,1586.9,5.75589062]
[1744857902044,8.71083,1587.1,1586.9,5.75589062]
[1744857902346,2.87574,1587.0,1586.8,4.46824]
[1744857902646,1.6154,1586.9,1586.8,4.46824]
[1744857903146,1.6154,1586.9,1586.8,1.26044]
[1744857904549,0.0094515,1587.2,1587.1,1.26026]
[1744857904751,1.6248515,1587.2,1587.1,1.26026]
[1744857905045,1.6248515,1587.2,1587.1,2.93406]
[1744857905949,0.0094515,1587.2,1587.1,2.93406]
[1744857906341,1.5e-06,1587.2,1587.1,8.68995062]
[1744857906541,1.5e-06,1587.2,1587.1,9.52025062]
[1744857907348,1.5e-06,1587.2,1587.1,7.01615062]
[1744857907940,1.6262015,1587.2,1587.1,7.01615062]
[1744857908649,1.6262015,1587.2,1587.1,1.26026]
[1744857908841,1.5e-06,1587.2,1587.1,1.26026]
[1744857909042,1.5e-06,1587.2,1587.1,3.69266]
[1744857909951,1.5e-06,1587.2,1587.1,2.86206]
[1744857915058,1.5e-06,1587.2,1587.1,7.86206]
[1744857915250,1.5e-06,1587.2,1587.1,3.72546]
[1744857915555,1.5e-06,1587.2,1587.1,2.86206]
[1744857916360,1.5e-06,1587.2,1587.1,17.96595062]
[1744857916951,1.5e-06,1587.2,1587.1,8.61795062]
[1744857917155,1.5e-06,1587.2,1587.1,2.86206]
[1744857918153,1.5e-06,1587.2,1587.1,1.26026]
[1744857918554,1.5e-06,1587.2,1587.1,3.00746]
[1744857921657,1.5e-06,1587.2,1587.1,13.76335062]
[1744857922359,1.5e-06,1587.2,1587.1,8.76335062]
[1744857922565,1.5e-06,1587.2,1587.1,13.76335062]
[1744857925261,0.8153,1587.9,1587.1,13.76335062]
[1744857925262,0.8153,1587.9,1587.8,1.2597]
[1744857925564,6.0304,1588.0,1587.9,1.25962]
[1744857925763,1.6824,1588.0,1587.9,1.25962]
[1744857926158,6.6824,1588.0,1587.9,1.25962]
[1744857926556,7.94195,1588.0,1587.8,1.25965]
[1744857926853,2.5171,1587.9,1587.8,1.25965]
[1744857927864,0.0094515,1588.1,1588.0,1.25954]
[1744857928070,1.6866515,1588.1,1588.0,1.25954]
[1744857928272,1.6866515,1588.1,1588.0,2.91584]
[1744857929166,9.1978,1588.8,1588.5,1.25915]
[1744857929368,5.2022,1588.7,1588.6,1.25907]
[1744857929575,5.2022,1588.7,1588.5,1.25908]
[1744857929978,5.2022,1588.7,1588.5,1.25909]
[1744857930175,5.2022,1588.7,1588.3,3.2078]
[1744857930375,2.4805,1588.6,1588.5,1.25907]
[1744857931577,8.73961,1588.6,1588.4,1.25917]
[1744857931771,1.6618,1588.5,1588.4,1.25917]
[1744857931967,1.6618,1588.5,1588.1,0.8351]
[1744857932171,5.60627,1588.4,1588.2,1.25936]
[1744857932378,1.6439,1588.3,1588.2,1.25936]
[1744857932576,2.4942,1588.3,1588.2,1.25936]
[1744857937981,1.6439,1588.3,1588.2,1.25936]
[1744857942576,1.6439,1588.3,1588.2,2.92636]
[1744857945891,4.347,1588.4,1588.3,1.2593]
[1744857946090,4.347,1588.4,1588.3,2.8779]
[1744857946290,4.347,1588.4,1588.3,1.2593]
[1744857946588,6.0583,1588.4,1588.3,1.2593]
[1744857949487,1.25933,1588.3,1588.0,10.59449062]
[1744857949690,1.6111,1588.3,1588.2,1.25931]
[1744857956491,2.8704,1588.3,1588.2,1.25931]
[1744857957097,1.6111,1588.3,1588.2,1.25931]
[1744857957298,2.8704,1588.3,1588.2,1.25931]
[1744857957598,1.6111,1588.3,1588.2,1.25938]
[1744857957994,2.8704,1588.3,1588.2,1.25938]
[1744857958599,1.6111,1588.3,1588.2,1.25938]
[1744857960499,1.6111,1588.3,1588.2,2.09648]
[1744857961003,4.347,1588.4,1588.3,1.2593]
[1744857961192,6.0195,1588.4,1588.3,2.9957]
[1744857961894,6.0915,1588.4,1588.3,2.9957]
[1744857964308,7.35072,1588.4,1588.3,2.9957]
[1744857964498,7.35072,1588.4,1588.2,2.09643]
[1744857964700,1.7488,1588.3,1588.2,2.09643]
[1744857965598,1.25944,1588.2,1588.0,4.4673]
[1744857965795,3.00826,1588.1,1588.0,1.25954]
[1744857965999,3.83286,1588.1,1587.9,2.5353515]
[1744857966199,1.6425,1588.0,1587.9,3.7948915]
[1744857967110,2.90204,1588.0,1587.9,2.9749915]
[1744857967404,1.6425,1588.0,1587.9,2.9749915]
[1744857967603,2.90204,1588.0,1587.9,1.2689915]
[1744857967802,2.90204,1588.0,1587.9,0.0094515]
[1744857968309,1.6425,1588.0,1587.9,1.2690715]
[1744857969000,1.6425,1588.0,1587.9,2.9750715]
[1744857969706,5.1466,1588.1,1588.0,1.25954]
[1744857970008,6.8149,1588.1,1588.0,2.96624]
[1744857973607,4.322,1588.1,1588.0,2.96624]
[1744857974613,8.10127,1588.3,1588.2,1.25938]
[1744857974805,11.29599606,1588.4,1588.3,1.2593]
[1744857974806,14.77849606,1588.4,1588.3,1.2593]
[1744857976097,4.322,1588.4,1588.3,4.4671]
[1744857978213,10.45649606,1588.5,1588.4,1.25922]
[1744857978416,12.04569606,1588.5,1588.4,3.84912]
[1744857978714,10.45649606,1588.5,1588.4,3.84912]
[1744857979515,6.7252,1588.6,1588.5,1.25915]
[1744857979705,6.7252,1588.6,1588.5,2.98255]
[1744857981115,106.49294756,1588.8,1588.5,1.7234]
[1744857981306,15.61584756,1588.8,1588.7,1.25899]
[1744857981706,17.26384756,1588.8,1588.7,1.25899]
[1744857982306,17.26384756,1588.8,1588.7,2.88569]
[1744857982504,17.26384756,1588.8,1588.7,3.72639]
[1744857983611,17.26384756,1588.8,1588.6,0.829]
[1744857983806,1.648,1588.7,1588.5,1.25913]
[1744857984007,1.25907,1588.6,1588.5,1.25913]
[1744857984208,0.862,1588.6,1588.5,1.25913]
[1744857984614,2.12107,1588.6,1588.5,1.25913]
[1744857984817,3.80947,1588.6,1588.5,1.25913]
[1744857986117,3.80947,1588.6,1588.4,2.94917]
[1744857986412,1.6884,1588.5,1588.4,2.09077]
[1744857987318,1.6884,1588.5,1588.4,3.74977]
[1744857987517,5.1593515,1588.8,1588.4,5.6984]
[1744857987709,6.8060515,1588.8,1588.7,1.25899]
[1744857988307,6.8060515,1588.8,1588.7,2.91799]
[1744857988608,4.3314515,1588.8,1588.7,2.91799]
[1744857988805,4.3314515,1588.8,1588.7,3.74819]
[1744857990823,0.0094515,1588.8,1588.7,3.74819]
[1744857991922,0.0094515,1588.8,1588.7,1.25899]
[1744857992221,1.6714515,1588.8,1588.7,1.25899]
[1744857992422,0.0094515,1588.8,1588.7,2.89329]
[1744857992920,0.0094515,1588.8,1588.7,1.25899]
[1744857993119,0.0094515,1588.8,1588.7,2.89329]
[1744857996024,1.6352515,1588.8,1588.7,2.89329]
[1744857996428,2.8941615,1588.8,1588.7,1.25899]
[1744857996618,2.8941615,1588.8,1588.6,5.75589062]
[1744857996919,1.7283,1588.7,1588.6,7.01496062]
[1744857997526,1.7283,1588.7,1588.6,1.25907]
[1744857999227,0.0094515,1588.8,1588.7,1.25899]
[1744858000329,1.6041515,1588.8,1588.7,1.25899]
[1744858000531,0.0094515,1588.8,1588.7,2.98749]
[1744858000724,0.0094515,1588.8,1588.7,3.84099]
[1744858001229,3.2078,1589.1,1588.8,3.1472]
[1744858001429,3.2078,1589.1,1589.0,1.25875]
[1744858001924,3.2078,1589.1,1589.0,2.98725]
[1744858002222,4.304,1589.2,1589.1,1.25867]
[1744858002422,4.3134515,1589.2,1589.1,6.95097]
[1744858002829,0.0094515,1589.2,1589.1,6.95097]
[1744858006831,1.6623515,1589.2,1589.1,6.95097]
[1744858014531,0.8488,1589.5,1589.1,6.95097]
[1744858014739,0.8071,1589.6,1589.5,1.25835]
[1744858015335,2.5192,1589.6,1589.5,1.25835]
[1744858015537,2.5192,1589.6,1589.5,2.12825]
[1744858017336,0.0094515,1589.7,1589.6,1.25827]
[1744858017639,0.0094515,1589.7,1589.6,2.97457]
[1744858019637,1.7656515,1589.7,1589.6,2.97457]
[1744858020337,0.0094515,1589.7,1589.6,2.97457]
[1744858021137,0.0094515,1589.7,1589.6,1.7163]
[1744858021337,0.0094515,1589.7,1589.6,1.25827]
[1744858021740,1.6133515,1589.7,1589.6,1.25827]
[1744858022439,0.0094515,1589.7,1589.6,1.25827]
[1744858022635,1.5e-06,1589.7,1589.6,2.90947]
[1744858024137,4.302,1590.1,1590.0,1.25796]
[1744858026236,4.302,1590.1,1590.0,2.92576]
[1744858026644,1.6513515,1590.2,1590.1,1.25788]
[1744858026844,1.6513515,1590.2,1590.1,2.85398]
[1744858028543,0.0094515,1590.2,1590.1,2.85398]
[1744858029242,0.0094515,1590.2,1590.1,6.06178]
[1744858029443,14.71049606,1590.5,1590.3,1.25772]
[1744858029444,1.6764,1590.4,1590.3,1.25772]
[1744858029936,4.0362,1590.7,1590.3,4.8039]
[1744858030138,10.45649606,1590.8,1590.7,1.2574]
[1744858030446,10.45649606,1590.8,1590.6,1.25743]
[1744858030646,1.6799,1590.7,1590.6,1.25743]
[1744858032247,1.6799,1590.7,1590.6,2.90073]
[1744858032547,1.6799,1590.7,1590.6,3.76183]
[1744858032946,10.45649606,1590.8,1590.7,1.2574]
[1744858033148,10.45649606,1590.8,1590.7,6.0824]
[1744858034245,10.45649606,1590.8,1590.7,4.825]
[1744858034449,3.82027098,1590.9,1590.6,7.87442062]
[1744858034634,1.7562,1590.7,1590.6,7.87442062]
[1744858034938,0.80680098,1590.9,1590.7,1.2574]
[1744858035138,1.7562,1590.8,1590.7,1.2574]
[1744858035535,1.7562,1590.8,1590.7,2.8746]
[1744858036346,1.7562,1590.8,1590.6,7.01332062]
[1744858036647,1.7562,1590.8,1590.7,1.2574]
[1744858036949,3.01356,1590.8,1590.6,5.75589062]
[1744858037151,3.01356,1590.8,1590.6,7.01337062]
[1744858037451,1.7182,1590.7,1590.6,7.01337062]
[1744858038653,1.7182,1590.7,1590.6,1.25748]
[1744858039146,10.9712,1590.7,1590.4,1.25759]
[1744858039353,2.89312,1590.6,1590.4,1.25759]
[1744858039542,4.61812,1590.6,1590.4,1.25759]
[1744858039849,1.725,1590.5,1590.4,1.25759]
[1744858040049,2.98256,1590.5,1590.3,7.01356062]
[1744858040252,1.725,1590.5,1590.4,1.25764]
[1744858040442,1.6356,1590.6,1590.5,1.25756]
[1744858040749,2.89308,1590.6,1590.4,1.25757]
[1744858043352,1.25756,1590.5,1590.3,1.25766]
[1744858043550,6.10094,1590.6,1590.2,1.7065]
[1744858043750,1.25756,1590.5,1590.3,1.25766]
[1744858044048,6.10091,1590.6,1590.4,1.25761]
[1744858044243,2.89311,1590.6,1590.4,1.25761]
[1744858044954,1.25756,1590.5,1590.3,1.25767]
[1744858045155,1.25761,1590.5,1590.2,1.7065]
[1744858045454,2.89314,1590.6,1590.4,1.25759]
[1744858047157,1.6356,1590.6,1590.5,1.25756]
[1744858047656,2.89312,1590.6,1590.4,2.94019]
[1744858048651,1.6356,1590.6,1590.5,1.25756]
[1744858048851,2.89308,1590.6,1590.4,2.94019]
[1744858050060,1.25756,1590.5,1590.3,5.27897]
[1744858050254,1.25756,1590.5,1590.3,2.07117]